bitfinex/quotes_BTCUSD_20260308
["timestamp","ask_amount","ask_price","bid_price","bid_amount"]
[1772969596767,0.07380618,67745.0,67737.0,0.02091296]
[1772969599107,0.07380618,67745.0,67737.0,0.09472786]
[1772969599431,0.07380618,67745.0,67736.0,0.07529524]
[1772969601229,0.07380618,67745.0,67736.0,0.07549524]
[1772969602332,0.07380291,67748.0,67736.0,0.07549524]
[1772969602558,0.07380618,67747.0,67736.0,0.07549524]
[1772969603234,0.07391473,67755.0,67737.0,0.12120956]
[1772969603485,0.07539473,67755.0,67737.0,0.12120956]
[1772969603980,0.07391473,67755.0,67737.0,0.12120956]
[1772969604751,0.07391473,67755.0,67737.0,0.12220956]
[1772969605211,0.00011918,67755.0,67738.0,0.07381381]
[1772969605402,0.00011918,67755.0,67738.0,0.19502337]
[1772969606564,0.00011918,67755.0,67738.0,0.07381381]
[1772969606937,0.00011918,67755.0,67726.0,0.07382688]
[1772969606938,0.04265663,67752.0,67725.0,0.07550776]
[1772969607088,0.04265663,67748.0,67727.0,0.07957569]
[1772969607292,0.075284,67747.0,67727.0,0.07957569]
[1772969607474,0.12862156,67744.0,67727.0,0.07957569]
[1772969607668,0.04226466,67741.0,67727.0,0.07957569]
[1772969607917,0.12862156,67738.0,67727.0,0.07957569]
[1772969608214,0.17088622,67735.0,67727.0,0.07957569]
[1772969609515,0.24470416,67735.0,67727.0,0.07957569]
[1772969610588,0.24470416,67735.0,67727.0,0.07957535]
[1772969610821,0.07381666,67736.0,67727.0,0.07957535]
[1772969611028,0.0738158,67737.0,67727.0,0.07957535]
[1772969611284,0.0738158,67737.0,67725.0,0.00020001]
[1772969611420,0.12862156,67732.0,67725.0,0.00020001]
[1772969611626,0.07382144,67731.0,67725.0,0.00020001]
[1772969612514,0.07392109,67731.0,67725.0,0.00020001]
[1772969613538,0.11533651,67731.0,67725.0,0.00020001]
[1772969616433,0.11555652,67731.0,67725.0,0.00020001]
[1772969619749,0.14363434,67730.0,67721.0,0.0002]
[1772969620337,0.07382362,67729.0,67721.0,0.0002]
[1772969620541,0.09338469,67729.0,67721.0,0.0002]
[1772969620735,0.21745796,67729.0,67721.0,0.0002]
[1772969622330,0.0738258,67727.0,67721.0,0.0002]
[1772969622535,0.0738258,67727.0,67711.0,0.07404294]
[1772969622536,0.01933688,67724.0,67711.0,0.07404294]
[1772969622736,0.12407327,67722.0,67714.0,0.00168]
[1772969623018,0.14341015,67721.0,67714.0,0.00168]
[1772969623537,0.14341015,67721.0,67714.0,0.0002]
[1772969624254,0.14341015,67721.0,67714.0,0.00168]
[1772969624656,0.07383343,67720.0,67714.0,0.00168]
[1772969624859,0.07383343,67720.0,67714.0,0.0002]
[1772969625065,0.07383343,67720.0,67714.0,0.00168]
[1772969625266,0.21708304,67720.0,67714.0,0.00168]
[1772969625471,0.21708304,67720.0,67714.0,0.0002]
[1772969627168,0.21708304,67720.0,67714.0,0.0004916]
[1772969635709,0.01827752,67725.0,67714.0,0.0004916]
[1772969635910,0.07382667,67727.0,67714.0,0.0004916]
[1772969635911,0.01827752,67723.0,67714.0,0.0004916]
[1772969636110,0.14235079,67722.0,67714.0,0.0004916]
[1772969638132,0.07383234,67721.0,67714.0,0.0004916]
[1772969642996,0.07383234,67721.0,67704.0,0.00168]
[1772969642997,0.13198237,67721.0,67704.0,0.00168]
[1772969643221,0.00148,67723.0,67704.0,0.00168]
[1772969643222,0.0178874,67718.0,67704.0,0.00168]
[1772969643572,0.14783717,67714.0,67704.0,0.00168]
[1772969644273,0.14783717,67714.0,67707.0,0.0002]
[1772969644491,0.1384125,67714.0,67707.0,3.195e-05]
[1772969644685,0.00148,67717.0,67702.0,0.00168]
[1772969644686,0.01597623,67713.0,67702.0,0.00168]
[1772969644885,0.13186094,67710.0,67702.0,0.00168]
[1772969645090,0.13186094,67708.0,67702.0,0.00168]
[1772969645387,0.13186094,67708.0,67702.0,0.0002]
[1772969645791,0.01597623,67707.0,67695.0,0.00168]
[1772969645970,0.14783717,67705.0,67695.0,0.00168]
[1772969646171,0.14783717,67705.0,67695.0,0.00207739]
[1772969646372,0.13186094,67705.0,67695.0,0.00059739]
[1772969646538,0.13186094,67703.0,67695.0,0.00059739]
[1772969647171,0.07385306,67702.0,67696.0,0.00148]
[1772969647367,0.205714,67702.0,67696.0,0.00148]
[1772969647579,0.13186094,67700.0,67686.0,0.0002]
[1772969647785,0.01746882,67697.0,67675.0,0.0004]
[1772969647980,0.11727529,67690.0,67656.0,0.08184719]
[1772969648181,0.01746882,67686.0,67656.0,0.07416258]
[1772969648396,0.13186094,67683.0,67656.0,0.0002597]
[1772969648638,0.13186094,67679.0,67657.0,0.00012446]
[1772969648846,0.01746882,67676.0,67657.0,0.00012446]
[1772969649067,0.07388361,67674.0,67657.0,0.00012446]
[1772969649401,0.22321337,67674.0,67657.0,0.00012446]
[1772969649701,0.14921972,67673.0,67657.0,0.00012446]
[1772969649942,0.13186094,67671.0,67656.0,0.0002597]
[1772969650148,0.14921972,67671.0,67657.0,0.00039803]
[1772969651136,0.07388798,67670.0,67657.0,0.00039803]
[1772969652059,0.14980776,67669.0,67657.0,0.00039803]
[1772969652565,0.07388798,67670.0,67637.0,0.07392392]
[1772969652566,0.01942682,67668.0,67637.0,0.07392392]
[1772969652896,0.01942682,67668.0,67641.0,5.882e-05]
[1772969652897,0.13186094,67663.0,67641.0,5.882e-05]
[1772969653099,0.07388798,67670.0,67628.0,0.0002597]
[1772969653100,0.13186094,67658.0,67628.0,0.0002597]
[1772969653304,0.01794682,67654.0,67628.0,0.00037899]
[1772969653506,0.13186094,67651.0,67628.0,0.00037899]
[1772969653722,0.07538218,67657.0,67625.0,0.0004]
[1772969653723,0.02671169,67647.0,67625.0,0.0004]
[1772969653897,0.16196682,67649.0,67625.0,0.0005194]
[1772969653898,0.02671169,67643.0,67625.0,0.0005194]
[1772969654109,0.13186094,67640.0,67625.0,0.0005194]
[1772969654312,0.16196682,67649.0,67611.0,0.07395232]
[1772969654313,0.13186094,67636.0,67611.0,0.07395232]
[1772969654607,0.13334094,67635.0,67615.0,0.07394755]
[1772969654936,0.15857263,67633.0,67615.0,0.07394755]
[1772969655079,0.15857263,67633.0,67616.0,0.00148]
[1772969655284,0.0739295,67632.0,67616.0,0.00148]
[1772969655465,0.02649923,67631.0,67616.0,0.00148]
[1772969655668,0.15836017,67628.0,67616.0,0.00148]
[1772969655873,0.15836017,67628.0,67587.0,0.08765625]
[1772969655874,0.02797923,67627.0,67587.0,0.08765625]
[1772969656097,0.02797923,67627.0,67583.0,0.00148]
[1772969656098,0.16196682,67617.0,67583.0,0.00148]
[1772969656330,0.02649923,67612.0,67583.0,0.00148]
[1772969656534,0.02649923,67612.0,67574.0,0.19743828]
[1772969656535,2.530133,67609.0,67575.0,1e-08]
[1772969656766,0.113855,67603.0,67575.0,1e-08]
[1772969656971,0.13186094,67599.0,67575.0,1e-08]
[1772969657340,0.07397215,67593.0,67575.0,1e-08]
[1772969657524,0.03869817,67589.0,67575.0,0.00039798]
[1772969657778,0.13186094,67586.0,67564.0,0.00148]
[1772969657986,0.13186094,67582.0,67565.0,0.00586955]
[1772969658188,0.13186094,67578.0,67565.0,0.00586955]
[1772969658338,0.03869817,67575.0,67557.0,0.00148]
[1772969658540,0.00148,67583.0,67558.0,0.12344549]
[1772969658746,0.17055911,67587.0,67558.0,0.12344549]
[1772969658949,0.00148,67586.0,67558.0,0.12344549]
[1772969659350,0.07398091,67585.0,67579.0,0.0002]
[1772969659519,0.20584185,67585.0,67579.0,0.0002]
[1772969659717,0.07546091,67585.0,67579.0,0.0002]
[1772969660334,0.13186094,67586.0,67572.0,0.0002]
[1772969660335,0.07398038,67586.0,67572.0,0.0002]
[1772969660534,0.00575,67592.0,67573.0,0.12344549]
[1772969661383,0.00575,67592.0,67575.0,0.12344549]
[1772969661585,0.00148,67599.0,67575.0,0.12344549]
[1772969662582,0.0004,67600.0,67577.0,0.12344549]
[1772969663710,0.07436492,67600.0,67579.0,0.12344549]
[1772969663925,0.07436492,67600.0,67578.0,0.07398857]
[1772969664129,0.13186094,67598.0,67578.0,0.07398857]
[1772969664472,0.0004,67600.0,67579.0,0.12344549]
[1772969664819,0.2420828,67607.0,67579.0,0.12344549]
[1772969664820,0.00148,67604.0,67579.0,0.12344549]
[1772969665055,0.24208217,67607.0,67579.0,0.12344549]
[1772969665250,0.07543691,67607.0,67579.0,0.12344549]
[1772969665459,0.13186094,67605.0,67575.0,0.0004]
[1772969665666,0.16831151,67604.0,67575.0,0.07439112]
[1772969665856,0.00148,67603.0,67575.0,0.07439112]
[1772969666160,0.13186094,67601.0,67575.0,0.07439112]
[1772969666356,0.03645057,67598.0,67575.0,0.07439112]
[1772969666505,0.13186094,67595.0,67575.0,0.07439112]
[1772969666704,0.07395902,67605.0,67575.0,0.07439112]
[1772969666705,0.03645057,67591.0,67575.0,0.07439112]
[1772969666901,0.13186094,67589.0,67575.0,0.07439112]
[1772969667157,0.03645057,67586.0,67575.0,0.07439112]
[1772969667306,0.13186094,67585.0,67575.0,0.07439112]
[1772969667507,0.13186094,67585.0,67578.0,0.0002]
[1772969667708,0.13186094,67585.0,67572.0,0.00030593]
[1772969667709,0.13186094,67582.0,67572.0,0.07430018]
[1772969667922,0.073982,67584.0,67572.0,0.07430018]
[1772969667923,0.16849798,67581.0,67572.0,0.07430018]
[1772969668125,0.03663704,67588.0,67572.0,0.07430018]
[1772969668338,0.00148,67587.0,67572.0,0.07430018]
[1772969668539,0.11209504,67588.0,67572.0,0.07430018]
[1772969668954,0.11061504,67588.0,67572.0,0.07430018]
[1772969669157,0.11209504,67588.0,67572.0,0.07430018]
[1772969669362,0.24395598,67588.0,67572.0,0.07430018]
[1772969670183,0.11209504,67588.0,67572.0,0.07430018]
[1772969670496,0.13186094,67587.0,67572.0,0.07430018]
[1772969672288,0.07397981,67586.0,67572.0,0.07430018]
[1772969672571,0.12623441,67585.0,67572.0,0.07430018]
[1772969672810,0.12623441,67583.0,67572.0,0.07430018]
[1772969673018,0.12623441,67580.0,67565.0,0.07975175]
[1772969673227,0.03698792,67577.0,67565.0,0.07987136]
[1772969673431,0.03698792,67571.0,67565.0,0.00586961]
[1772969673639,0.0017,67572.0,67565.0,0.07987211]
[1772969673862,0.16487375,67575.0,67565.0,0.07987211]
[1772969673863,0.00148,67579.0,67565.0,0.07987211]
[1772969674264,0.12623441,67577.0,67565.0,0.07987211]
[1772969674631,0.11114791,67578.0,67565.0,0.07987211]
[1772969674877,0.03715934,67577.0,67565.0,0.07987211]
[1772969675436,0.07398857,67579.0,67565.0,0.07987211]
[1772969675654,0.07398556,67581.0,67565.0,0.07987211]
[1772969675655,0.07546556,67581.0,67565.0,0.21386378]
[1772969676356,0.16362385,67580.0,67565.0,0.07987211]
[1772969676555,0.03738944,67579.0,67565.0,0.07987211]
[1772969676756,0.03738944,67579.0,67559.0,0.13399167]
[1772969676757,0.12623441,67576.0,67561.0,0.00148]
[1772969677019,0.03738944,67575.0,67562.0,0.00148]
[1772969677194,0.07398556,67581.0,67563.0,0.13547167]
[1772969677395,0.07398556,67581.0,67565.0,0.13399167]
[1772969677396,0.00148,67580.0,67565.0,0.13399167]
[1772969677785,0.07410461,67581.0,67555.0,0.07401376]
[1772969677786,0.00011905,67581.0,67567.0,0.13399167]
[1772969678148,0.00011905,67581.0,67570.0,0.07399733]
[1772969678720,0.07419902,67587.0,67571.0,0.13399167]
[1772969678721,0.00022001,67587.0,67571.0,0.13399167]
[1772969678916,0.00022001,67587.0,67571.0,0.13411072]
[1772969679652,0.00575,67592.0,67572.0,0.13399167]
[1772969679864,0.07972377,67592.0,67571.0,0.00011905]
[1772969680076,0.03777441,67591.0,67571.0,0.00011905]
[1772969680292,0.11174881,67591.0,67571.0,0.13411072]
[1772969680473,0.16400882,67590.0,67571.0,0.13411072]
[1772969680845,0.00575,67592.0,67571.0,0.13411072]
[1772969681634,0.07972347,67592.0,67571.0,0.13411072]
[1772969681843,0.00575,67592.0,67571.0,0.13411072]
[1772969682050,0.0797237,67592.0,67571.0,0.13411072]
[1772969682250,0.00022001,67587.0,67573.0,0.13399167]
[1772969682448,0.00022001,67587.0,67574.0,0.00148]
[1772969683675,0.00022001,67594.0,67574.0,0.00148]
[1772969683885,1e-08,67594.0,67575.0,0.13399167]
[1772969684292,1e-08,67594.0,67577.0,0.13399167]
[1772969685827,0.03829524,67592.0,67576.0,0.07399076]
[1772969691260,1e-08,67594.0,67577.0,0.13399167]
[1772969691464,0.07397215,67593.0,67576.0,0.07399076]
[1772969691665,0.12623441,67590.0,67576.0,0.07399076]
[1772969692003,0.04779895,67589.0,67576.0,0.07399076]
[1772969692737,0.12623441,67590.0,67576.0,0.07399076]
[1772969692942,1e-08,67594.0,67579.0,0.00419816]
[1772969693146,1e-08,67594.0,67581.0,0.13399167]
[1772969693366,1e-08,67594.0,67582.0,0.00419816]
[1772969694068,1e-08,67594.0,67583.0,0.0739831]
[1772969694878,0.00022001,67592.0,67583.0,0.0739831]
[1772969695661,0.00022001,67592.0,67583.0,0.10043016]
[1772969697437,0.00022001,67592.0,67583.0,0.0739831]
[1772969697876,0.00022001,67592.0,67584.0,0.02672374]
[1772969698766,0.00022001,67592.0,67585.0,0.10070465]
[1772969699713,1e-08,67594.0,67586.0,0.02680903]
[1772969700212,1e-08,67594.0,67585.0,0.07398091]
[1772969700420,0.07397124,67594.0,67586.0,0.00148]
[1772969700625,1e-08,67594.0,67582.0,0.10079213]
[1772969700835,1e-08,67594.0,67582.0,0.0739831]
[1772969701044,1e-08,67594.0,67555.0,0.2482]
[1772969701045,0.12623441,67591.0,67561.0,0.0740069]
[1772969701243,0.00298732,67590.0,67572.0,0.02680903]
[1772969701479,0.12922173,67590.0,67572.0,0.02680903]
[1772969701680,0.12623441,67588.0,67572.0,0.02680903]
[1772969702037,0.00148,67587.0,67572.0,0.02680903]
[1772969702728,0.07397981,67586.0,67572.0,0.02647302]
[1772969702928,0.12717379,67583.0,67566.0,0.07400123]
[1772969703185,0.00535129,67580.0,67567.0,0.00148]
[1772969703381,0.00148,67581.0,67568.0,0.02584895]
[1772969703735,0.1286535,67580.0,67567.0,0.00148]
[1772969703935,0.1286535,67580.0,67561.0,0.10223961]
[1772969703936,0.12778124,67578.0,67559.0,0.07400938]
[1772969704153,0.00111403,67575.0,67559.0,0.07400938]
[1772969704349,0.12778124,67572.0,67559.0,0.07548938]
[1772969704561,0.00111403,67569.0,67559.0,0.07400938]
[1772969704781,0.00111403,67569.0,67558.0,0.07420938]
[1772969704782,0.20178094,67568.0,67558.0,0.07420938]
[1772969704981,0.12778124,67568.0,67558.0,0.07420938]
[1772969705152,0.20178114,67568.0,67557.0,0.07400938]
[1772969705370,0.12778124,67567.0,67555.0,0.07401376]
[1772969705921,0.12778124,67567.0,67555.0,0.07549376]
[1772969706921,0.12778124,67567.0,67554.0,0.0742139]
[1772969706922,0.07400171,67566.0,67554.0,0.0002]
[1772969707091,0.07400171,67566.0,67552.0,0.12689112]
[1772969707294,0.00148,67565.0,67552.0,0.07401705]
[1772969707513,0.02774274,67565.0,67551.0,0.0004124]
[1772969707718,0.02626274,67564.0,67551.0,0.0004124]
[1772969707917,0.00148,67564.0,67552.0,0.02809586]
[1772969708114,0.00148,67564.0,67551.0,0.07443024]
[1772969708115,0.02774274,67564.0,67551.0,0.07443024]
[1772969708316,0.12926124,67564.0,67551.0,0.0004124]
[1772969708518,0.12778124,67563.0,67551.0,0.07443023]
[1772969708745,0.15521141,67563.0,67551.0,0.07443023]
[1772969708990,0.07400609,67562.0,67551.0,0.07443023]
[1772969709187,0.10143575,67563.0,67551.0,0.07443023]
[1772969709724,0.12778124,67562.0,67550.0,0.0012]
[1772969709872,0.12778124,67562.0,67527.0,0.07404378]
[1772969709873,0.01043215,67559.0,67542.0,0.0303609]
[1772969710053,0.12778124,67557.0,67547.0,0.0003195]
[1772969710248,0.00148,67558.0,67541.0,0.01170641]
[1772969710249,0.12778124,67555.0,67541.0,0.01170641]
[1772969710449,0.12778124,67553.0,67538.0,0.00575]
[1772969710645,0.0001195,67555.0,67539.0,0.0288809]
[1772969710845,0.0001195,67555.0,67543.0,0.07402691]
[1772969711104,0.0015995,67555.0,67544.0,0.0290809]
[1772969711279,0.0015995,67555.0,67544.0,0.0002]
[1772969711479,0.13869424,67554.0,67544.0,0.0002]
[1772969712096,0.13869424,67554.0,67539.0,0.07551097]
[1772969712097,0.0001195,67555.0,67539.0,0.07551078]
[1772969712259,0.0001195,67555.0,67541.0,0.0288809]
[1772969712466,0.0001195,67555.0,67543.0,0.0288809]
[1772969712880,0.01114378,67553.0,67538.0,0.00575]
[1772969713101,0.12778124,67549.0,67522.0,0.07404962]
[1772969713305,0.12778124,67545.0,67524.0,0.00148]
[1772969713504,0.12778124,67543.0,67524.0,0.07552742]
[1772969713727,0.12778124,67539.0,67524.0,0.00148]
[1772969714022,0.01141192,67535.0,67522.0,0.00148]
[1772969714224,0.12778124,67532.0,67518.0,0.03023188]
[1772969714412,0.0004,67550.0,67518.0,0.03023188]
[1772969714413,0.13919316,67549.0,67518.0,0.03023188]
[1772969714614,0.01289192,67548.0,67522.0,0.12689112]
[1772969714813,0.01289192,67548.0,67518.0,0.10428563]
[1772969714814,0.12778124,67545.0,67523.0,0.03019294]
[1772969715017,0.12778124,67541.0,67524.0,0.07404774]
[1772969715407,0.12778124,67539.0,67518.0,0.03023188]
[1772969715621,0.12778124,67535.0,67517.0,0.07405484]
[1772969715828,0.12778124,67531.0,67515.0,0.0006454]
[1772969716031,0.12778124,67527.0,67515.0,0.07470194]
[1772969716236,0.12778124,67527.0,67509.0,0.0740631]
[1772969716237,0.12926124,67526.0,67511.0,0.07981146]
[1772969716434,0.12926124,67526.0,67512.0,0.0288809]
[1772969716435,0.00148,67526.0,67512.0,0.0288809]
[1772969716562,0.12778124,67525.0,67511.0,0.00575]
[1772969716964,0.07404774,67524.0,67511.0,0.00575]
[1772969717188,0.12778124,67523.0,67505.0,0.00148]
[1772969717389,0.12778124,67523.0,67498.0,0.07407542]
[1772969717390,0.01205815,67520.0,67500.0,0.07527398]
[1772969717591,0.12778124,67517.0,67500.0,0.0012]
[1772969717763,0.12778124,67515.0,67491.0,0.07408395]
[1772969718122,0.07404774,67524.0,67494.0,0.0288809]
[1772969718419,0.00148,67523.0,67498.0,0.0288809]
[1772969718621,0.12778124,67522.0,67500.0,0.0288809]
[1772969718839,0.12778124,67522.0,67501.0,0.00148]
[1772969719071,0.00148,67523.0,67505.0,0.0288809]
[1772969719072,0.07404941,67523.0,67505.0,0.0288809]
[1772969719247,0.00148,67522.0,67505.0,0.15577202]
[1772969719456,0.00148,67522.0,67504.0,0.07406968]
[1772969719457,0.01257202,67519.0,67504.0,0.00148]
[1772969719649,0.12778124,67518.0,67505.0,0.0002]
[1772969719853,0.00148,67517.0,67506.0,0.0288809]
[1772969720030,0.07404774,67524.0,67507.0,0.0288809]
[1772969720233,0.00148,67519.0,67507.0,0.0288809]
[1772969720437,0.00148,67519.0,67505.0,0.0002]
[1772969720648,0.00148,67519.0,67505.0,0.00168]
[1772969720649,0.12926124,67519.0,67505.0,0.00168]
[1772969721032,0.12926124,67519.0,67505.0,0.07574771]
[1772969721033,0.07405432,67518.0,67505.0,0.07574771]
[1772969721228,0.07404774,67524.0,67505.0,0.07574771]
[1772969721229,0.00148,67522.0,67508.0,0.0288809]
[1772969721554,0.07444771,67525.0,67505.0,0.07674771]
[1772969721555,0.07592732,67525.0,67512.0,0.0288809]
[1772969721734,0.07592732,67525.0,67512.0,0.0303609]
[1772969722121,0.20370856,67525.0,67512.0,0.00148]
[1772969722831,0.07592732,67525.0,67512.0,0.00148]
[1772969723231,0.12778124,67524.0,67513.0,0.07405981]
[1772969723622,0.12778124,67524.0,67512.0,0.00148]
[1772969723864,0.07592732,67525.0,67512.0,0.07553981]
[1772969724179,0.00148,67524.0,67512.0,0.07473981]
[1772969724393,0.00148,67529.0,67515.0,0.0288809]
[1772969724624,0.14236439,67529.0,67512.0,0.07473981]
[1772969724820,0.01310315,67526.0,67511.0,0.00148]
[1772969724947,0.00148,67529.0,67494.0,0.00148]
[1772969724948,0.12778124,67523.0,67494.0,0.00148]
[1772969725275,1.53385,67514.0,67479.0,0.07409689]
[1772969725489,0.12778124,67511.0,67483.0,0.07409208]
[1772969725696,0.0132086,67506.0,67484.0,0.07984102]
[1772969725904,0.07405432,67518.0,67474.0,0.00098471]
[1772969725905,0.12778124,67503.0,67474.0,0.00098471]
[1772969726101,0.00575,67511.0,67468.0,0.0288809]
[1772969726102,0.013322,67498.0,67468.0,0.0288809]
[1772969726302,0.0004,67500.0,67471.0,0.12689112]
[1772969726303,0.12926124,67497.0,67471.0,0.12689112]
[1772969726506,0.0004,67500.0,67472.0,0.0288809]
[1772969726711,0.0004,67500.0,67476.0,0.0288809]
[1772969726946,0.00148,67499.0,67479.0,0.12689112]
[1772969727084,0.00148,67499.0,67477.0,0.00148]
[1772969727085,0.0004,67500.0,67482.0,0.0288809]
[1772969727289,0.07406535,67508.0,67498.0,0.12692315]
[1772969727489,0.00575,67511.0,67500.0,0.12689112]
[1772969727691,0.07981255,67511.0,67500.0,0.12849056]
[1772969727988,0.00148,67510.0,67494.0,0.00148]
[1772969728315,0.00148,67510.0,67483.0,0.07409273]
[1772969728316,0.00159968,67510.0,67492.0,0.00148]
[1772969728516,0.00011968,67510.0,67496.0,0.0288809]
[1772969728723,0.00011968,67510.0,67492.0,0.00148]
[1772969729055,0.12778124,67509.0,67492.0,0.00148]
[1772969729244,0.00011968,67510.0,67496.0,0.12689112]
[1772969729460,0.00011968,67510.0,67496.0,0.15577202]
[1772969729603,0.00011968,67510.0,67488.0,0.0288809]
[1772969729791,0.01467977,67506.0,67483.0,0.00148]
[1772969729992,0.12778124,67501.0,67478.0,0.07409766]
[1772969730192,0.00011968,67510.0,67482.0,0.0288809]
[1772969730389,0.12778124,67507.0,67483.0,0.15577202]
[1772969730611,0.12778124,67505.0,67483.0,0.15577202]
[1772969730844,0.00148,67504.0,67483.0,0.0288809]
[1772969731056,0.00148,67504.0,67486.0,0.12689112]
[1772969731213,0.1426446,67502.0,67483.0,0.07409273]
[1772969731411,0.01486336,67501.0,67483.0,0.07409273]
[1772969731690,0.07407078,67503.0,67484.0,0.12689112]
[1772969732004,0.00148,67500.0,67484.0,0.12689112]
[1772969733509,0.00575,67511.0,67486.0,0.0288809]
[1772969733752,0.07554419,67509.0,67490.0,0.0288809]
[1772969733874,0.13952646,67506.0,67484.0,0.07409077]
[1772969734079,0.01564468,67505.0,67485.0,0.00148]
[1772969734352,0.13952646,67502.0,67485.0,0.00148]
[1772969734680,0.00148,67501.0,67486.0,0.00148]
[1772969734878,0.00148,67501.0,67489.0,0.12883144]
[1772969735126,0.00148,67502.0,67489.0,0.12883144]
[1772969735329,0.00148,67502.0,67491.0,0.15771234]
[1772969735554,0.07407297,67501.0,67492.0,0.20291429]
[1772969735758,0.07407297,67501.0,67492.0,0.12883144]
[1772969735878,0.07407297,67501.0,67490.0,0.07408452]
[1772969736279,0.07407297,67501.0,67491.0,0.12883144]
[1772969736595,0.07407297,67503.0,67493.0,0.12883144]
[1772969736991,0.07407297,67503.0,67488.0,0.07408625]
[1772969736992,0.07407297,67503.0,67485.0,0.10297087]
[1772969737192,0.07407297,67503.0,67485.0,0.07556997]
[1772969737193,0.15541374,67502.0,67485.0,0.07556997]
[1772969737407,0.07407297,67501.0,67485.0,0.00148]
[1772969737629,0.00148,67500.0,67485.0,0.07557023]
[1772969738406,0.00148,67500.0,67485.0,0.00148]
[1772969738609,0.19381094,67530.0,67486.0,0.12883144]
[1772969738873,0.07425818,67533.0,67485.0,0.07556999]
[1772969738874,0.0741833,67510.0,67489.0,0.03093925]
[1772969739079,0.0741833,67510.0,67492.0,0.12883144]
[1772969739270,0.0741833,67510.0,67495.0,0.15977069]
[1772969739808,0.0741833,67510.0,67497.0,0.12883144]
[1772969740228,0.0756633,67510.0,67496.0,0.10649771]
[1772969740400,0.0756633,67510.0,67496.0,0.00148]
[1772969740607,0.01728459,67508.0,67492.0,0.00148]
[1772969740807,0.15681105,67507.0,67489.0,0.07408601]
[1772969741009,0.15681105,67507.0,67490.0,0.00148]
[1772969741447,0.15681105,67507.0,67490.0,0.00131204]
[1772969741837,0.0756633,67510.0,67493.0,0.03093925]
[1772969741838,0.07406749,67509.0,67493.0,0.03093925]
[1772969742174,0.00148,67508.0,67497.0,0.03093925]
[1772969742372,0.07406749,67509.0,67498.0,0.15977069]
[1772969742689,0.07418387,67510.0,67499.0,0.03093925]
[1772969742836,0.00575,67511.0,67499.0,0.03093925]
[1772969742837,0.07981201,67511.0,67499.0,0.03093925]
[1772969743040,0.07981201,67511.0,67503.0,0.03093925]
[1772969743248,0.07553546,67517.0,67506.0,0.12883144]
[1772969743564,0.07403669,67535.0,67506.0,0.12883144]
[1772969743565,0.07405213,67520.0,67506.0,0.15977069]
[1772969743765,0.07405542,67517.0,67507.0,0.07406639]
[1772969743974,0.00575,67538.0,67507.0,0.07406639]
[1772969743975,0.00022001,67526.0,67510.0,0.03093925]
[1772969744180,0.07444673,67525.0,67512.0,0.03093925]
[1772969744383,0.07444673,67525.0,67512.0,0.00148]
[1772969744594,0.13952646,67524.0,67504.0,0.10500889]
[1772969744911,0.07444673,67525.0,67504.0,0.10500889]
[1772969744912,0.00148,67523.0,67505.0,0.12883144]
[1772969745090,0.00148,67523.0,67504.0,0.07406964]
[1772969745091,0.00148,67523.0,67508.0,0.03093925]
[1772969745286,0.00148,67523.0,67508.0,0.03241925]
[1772969745896,0.13952646,67521.0,67508.0,0.00148]
[1772969746099,0.13952646,67521.0,67500.0,0.10501294]
[1772969746100,0.13952646,67521.0,67500.0,0.03093925]
[1772969746297,0.13952646,67517.0,67495.0,0.0740788]
[1772969746475,0.15928484,67516.0,67500.0,0.01026519]
[1772969746686,0.15928484,67516.0,67501.0,0.01026519]
[1772969746901,0.15928484,67516.0,67502.0,0.01026519]
[1772969747114,0.15928484,67516.0,67496.0,0.10501742]
[1772969747463,0.13952646,67514.0,67496.0,0.10501742]
[1772969748198,0.13952646,67512.0,67494.0,0.0002]
[1772969748397,0.13952646,67512.0,67472.0,0.22100883]
[1772969748398,0.13952646,67510.0,67488.0,0.07556722]
[1772969748646,0.13952646,67508.0,67488.0,0.07556722]
[1772969749258,0.07405981,67513.0,67487.0,0.07428724]
[1772969749480,0.13952646,67520.0,67492.0,0.03093925]
[1772969749612,0.07553198,67521.0,67495.0,0.12883144]
[1772969749811,0.07553198,67521.0,67499.0,0.03093925]
[1772969750010,0.07553198,67521.0,67502.0,0.12883144]
[1772969750263,0.21357968,67519.0,67495.0,0.10501881]
[1772969750514,0.13952646,67518.0,67497.0,0.12883144]
[1772969750727,0.13952646,67518.0,67495.0,0.07407956]
[1772969750728,0.07405322,67519.0,67500.0,0.03093925]
[1772969750905,0.00148,67517.0,67503.0,0.12883144]
[1772969751103,0.00148,67517.0,67506.0,0.03093925]
[1772969751278,0.07405322,67519.0,67506.0,0.15977069]
[1772969751482,0.00148,67518.0,67507.0,0.03093925]
[1772969751889,0.07405322,67519.0,67507.0,0.03093925]
[1772969752093,0.00148,67517.0,67507.0,0.03093925]
[1772969752292,0.07405651,67516.0,67508.0,0.07406529]
[1772969752675,0.11671254,67542.0,67509.0,0.03093925]
[1772969753035,0.07452376,67543.0,67516.0,0.03093925]
[1772969753172,0.07452376,67543.0,67519.0,0.12883144]
[1772969753371,0.21444946,67543.0,67522.0,0.03093925]
[1772969753604,0.21444946,67543.0,67524.0,0.03093925]
[1772969753766,0.21444946,67543.0,67524.0,0.03241925]
[1772969753962,0.07521986,67550.0,67524.0,0.00148]
[1772969754251,0.07533997,67550.0,67529.0,0.07404226]
[1772969754503,0.07533997,67550.0,67533.0,0.03093925]
[1772969754668,0.07533997,67550.0,67536.0,0.12883144]
[1772969754874,0.0851807,67561.0,67540.0,0.12883144]
[1772969755021,0.07400828,67560.0,67543.0,0.03093925]
[1772969755397,0.07400828,67560.0,67545.0,0.03078925]
[1772969755532,0.07548828,67560.0,67548.0,0.03093925]
[1772969755719,0.07398091,67587.0,67548.0,0.03093925]
[1772969756144,0.07398091,67587.0,67554.0,0.03093925]
[1772969756145,0.13952646,67583.0,67554.0,0.03093925]
[1772969756346,0.13952646,67581.0,67557.0,0.03093925]
[1772969756558,0.13952646,67581.0,67557.0,0.03241925]
[1772969756779,0.13952646,67581.0,67558.0,0.03093925]
[1772969757196,0.13952646,67579.0,67558.0,0.03093925]
[1772969757393,0.07398419,67582.0,67557.0,0.00148]
[1772969757394,0.00148,67578.0,67560.0,0.12883144]
[1772969757585,0.00148,67578.0,67561.0,0.03093925]
[1772969757789,0.07398419,67582.0,67561.0,0.12883144]
[1772969757989,0.00148,67577.0,67562.0,0.03093925]
[1772969758366,0.07399076,67576.0,67563.0,0.03241925]
[1772969758747,0.07411037,67576.0,67563.0,0.03241925]
[1772969759069,0.13952646,67575.0,67563.0,0.03241925]
[1772969759571,0.13952646,67573.0,67560.0,0.00148]
[1772969759770,0.13952646,67573.0,67555.0,0.00148]
[1772969760354,0.07399514,67572.0,67555.0,0.075493]
[1772969760721,0.13952646,67571.0,67553.0,0.03093925]
[1772969760850,0.13952646,67571.0,67553.0,0.03241925]
[1772969761062,0.13952646,67571.0,67553.0,0.03093925]
[1772969761261,0.13952646,67571.0,67553.0,0.07401545]